[Event "*** Titled Tuesday Blitz"]
[Site "Chess.com"]
[Date "2020.04.14"]
[Round "3"]
[White "leopato"]
[Black "pichonazo"]
[Result "0-1"]
[WhiteElo "2085"]
[BlackElo "2374"]
[TimeControl "180+1"]
[EndTime "10:28:41 PDT"]
[Termination "pichonazo won by resignation"]

1. e4 {[%clk 0:03:00.9]} 1... Nc6 {[%clk 0:02:59.7]} 2. Nf3 {[%clk 0:02:47.7]}
2... d6 {[%clk 0:02:59.2]} 3. Bb5 {[%clk 0:02:45.2]} 3... Nf6 {[%clk 0:02:58.5]}
4. Nc3 {[%clk 0:02:44.2]} 4... e5 {[%clk 0:02:56.4]} 5. d4 {[%clk 0:02:42.9]}
5... exd4 {[%clk 0:02:53.4]} 6. Nxd4 {[%clk 0:02:43.8]} 6... Bd7 {[%clk
0:02:53.5]} 7. Bxc6 {[%clk 0:02:42.2]} 7... bxc6 {[%clk 0:02:52.5]} 8. O-O
{[%clk 0:02:42.2]} 8... Be7 {[%clk 0:02:52.3]} 9. b3 {[%clk 0:02:39.5]} 9... O-O
{[%clk 0:02:52]} 10. Bb2 {[%clk 0:02:39.8]} 10... Re8 {[%clk 0:02:51.7]} 11. Re1
{[%clk 0:02:39.1]} 11... c5 {[%clk 0:02:49.4]} 12. Nde2 {[%clk 0:02:38]} 12...
Bc6 {[%clk 0:02:48.5]} 13. Ng3 {[%clk 0:02:36.5]} 13... Nd7 {[%clk 0:02:45.4]}
14. Nd5 {[%clk 0:02:28.2]} 14... Bxd5 {[%clk 0:02:42.6]} 15. Qxd5 {[%clk
0:02:25.1]} 15... Bf6 {[%clk 0:02:41.5]} 16. Bxf6 {[%clk 0:02:21]} 16... Nxf6
{[%clk 0:02:40.7]} 17. Qg5 {[%clk 0:02:18.5]} 17... h6 {[%clk 0:02:35.2]} 18.
Qh4 {[%clk 0:02:12.4]} 18... Nd7 {[%clk 0:02:21.8]} 19. Qg4 {[%clk 0:02:07.7]}
19... Ne5 {[%clk 0:02:21.1]} 20. Qf5 {[%clk 0:02:04]} 20... Qd7 {[%clk
0:02:16.2]} 21. f3 {[%clk 0:01:57.1]} 21... Qxf5 {[%clk 0:02:14.6]} 22. Nxf5
{[%clk 0:01:58]} 22... h5 {[%clk 0:02:09.4]} 23. Rad1 {[%clk 0:01:55.5]} 23...
a5 {[%clk 0:02:06.9]} 24. Ne3 {[%clk 0:01:30.8]} 24... a4 {[%clk 0:01:59.9]} 25.
Nd5 {[%clk 0:01:30.5]} 25... Ra7 {[%clk 0:01:59.1]} 26. f4 {[%clk 0:01:12.4]}
26... Nc6 {[%clk 0:01:52.8]} 27. c3 {[%clk 0:01:08.6]} 27... axb3 {[%clk
0:01:48.8]} 28. axb3 {[%clk 0:01:09.5]} 28... Rb8 {[%clk 0:01:45.5]} 29. Rb1
{[%clk 0:01:05.5]} 29... Kf8 {[%clk 0:01:42.8]} 30. Re2 {[%clk 0:00:38.7]} 30...
Ne7 {[%clk 0:01:39.5]} 31. Ne3 {[%clk 0:00:32.7]} 31... Ra3 {[%clk 0:01:30.5]}
32. Reb2 {[%clk 0:00:32]} 32... Rba8 {[%clk 0:01:29.9]} 33. Nc4 {[%clk
0:00:28.1]} 33... Ra1 {[%clk 0:01:28.4]} 34. Kf2 {[%clk 0:00:26.9]} 34... Ke8
{[%clk 0:01:18.3]} 35. g3 {[%clk 0:00:25.9]} 35... Kd7 {[%clk 0:01:17.8]} 36. h3
{[%clk 0:00:22.3]} 36... Rxb1 {[%clk 0:01:12.7]} 37. Rxb1 {[%clk 0:00:21.7]}
37... Ra2+ {[%clk 0:01:13.2]} 38. Rb2 {[%clk 0:00:19.7]} 38... Ra1 {[%clk
0:01:13.7]} 39. g4 {[%clk 0:00:18.5]} 39... h4 {[%clk 0:01:10.7]} 40. Kg2 {[%clk
0:00:17.1]} 40... Rc1 {[%clk 0:01:07.1]} 41. b4 {[%clk 0:00:05.7]} 41... Rxc3
{[%clk 0:01:04.4]} 42. Nd2 {[%clk 0:00:05.8]} 42... c4 {[%clk 0:01:00.5]} 43. b5
{[%clk 0:00:04.4]} 43... Rg3+ {[%clk 0:01:00.1]} 44. Kh2 {[%clk 0:00:03.2]}
44... c3 {[%clk 0:01:00.7]} 45. Rc2 {[%clk 0:00:02.4]} 45... cxd2 {[%clk
0:01:00.4]} 46. Rxd2 {[%clk 0:00:03.3]} 46... Rb3 {[%clk 0:01:00.3]} 47. e5
{[%clk 0:00:02.6]} 47... Rxb5 {[%clk 0:00:58.6]} 48. exd6 {[%clk 0:00:03.5]}
48... cxd6 {[%clk 0:00:58]} 49. f5 {[%clk 0:00:04.4]} 49... g6 {[%clk
0:00:55.6]} 50. Kg2 {[%clk 0:00:05.3]} 50... gxf5 {[%clk 0:00:54.8]} 51. gxf5
{[%clk 0:00:06.2]} 51... Rxf5 {[%clk 0:00:54.4]} 52. Re2 {[%clk 0:00:05.9]}
52... Rg5+ {[%clk 0:00:53.4]} 53. Kh2 {[%clk 0:00:06.8]} 53... Nf5 {[%clk
0:00:53]} 54. Rd2 {[%clk 0:00:07.7]} 54... Ke6 {[%clk 0:00:51]} 55. Rb2 {[%clk
0:00:08.6]} 55... d5 {[%clk 0:00:50.9]} 56. Rb7 {[%clk 0:00:09.5]} 56... f6
{[%clk 0:00:49.7]} 57. Rb8 {[%clk 0:00:10.4]} 57... Nd6 {[%clk 0:00:49.9]} 58.
Re8+ {[%clk 0:00:11.3]} 58... Nxe8 {[%clk 0:00:48.9]} 59. Kh1 {[%clk 0:00:09.9]}
59... d4 {[%clk 0:00:48.8]} 0-1

[Event "*** Titled Tuesday Blitz"]
[Site "Chess.com"]
[Date "2020.04.14"]
[Round "3"]
[White "Storne89"]
[Black "GHANDEEVAM2003"]
[Result "1-0"]
[WhiteElo "2613"]
[BlackElo "2906"]
[TimeControl "180+1"]
[EndTime "10:28:42 PDT"]
[Termination "Storne89 won by checkmate"]

1. e4 {[%clk 0:03:00.9]} 1... e6 {[%clk 0:03:00]} 2. d4 {[%clk 0:03:00]} 2... d5
{[%clk 0:03:00.9]} 3. Nc3 {[%clk 0:03:00.3]} 3... Nf6 {[%clk 0:03:01]} 4. Bg5
{[%clk 0:02:59.7]} 4... Be7 {[%clk 0:03:00.6]} 5. e5 {[%clk 0:02:58.6]} 5...
Nfd7 {[%clk 0:03:01.1]} 6. Bxe7 {[%clk 0:02:58.9]} 6... Qxe7 {[%clk 0:03:02]} 7.
f4 {[%clk 0:02:59.5]} 7... a6 {[%clk 0:03:01.9]} 8. Qg4 {[%clk 0:02:57.3]} 8...
g6 {[%clk 0:03:00.5]} 9. Nf3 {[%clk 0:02:53]} 9... c5 {[%clk 0:02:59.7]} 10. Bd3
{[%clk 0:02:51]} 10... Nc6 {[%clk 0:02:56.9]} 11. dxc5 {[%clk 0:02:50.1]} 11...
Nxc5 {[%clk 0:02:57.5]} 12. O-O {[%clk 0:02:41]} 12... b5 {[%clk 0:02:57.7]} 13.
Qg3 {[%clk 0:02:31.9]} 13... Bb7 {[%clk 0:02:54.9]} 14. Qf2 {[%clk 0:02:31.9]}
14... Rc8 {[%clk 0:02:49.3]} 15. a3 {[%clk 0:02:31.4]} 15... O-O {[%clk
0:02:43.4]} 16. b4 {[%clk 0:02:21.3]} 16... Nxd3 {[%clk 0:02:33.5]} 17. cxd3
{[%clk 0:02:22.2]} 17... Nxb4 {[%clk 0:02:34.1]} 18. axb4 {[%clk 0:02:16.9]}
18... Rxc3 {[%clk 0:02:34.5]} 19. Qd4 {[%clk 0:02:17.4]} 19... Rfc8 {[%clk
0:02:31]} 20. g4 {[%clk 0:01:49.7]} 20... Rc2 {[%clk 0:02:25.7]} 21. f5 {[%clk
0:01:43.8]} 21... exf5 {[%clk 0:01:50.9]} 22. gxf5 {[%clk 0:01:43]} 22... gxf5
{[%clk 0:01:38]} 23. Kh1 {[%clk 0:01:36.4]} 23... Qe6 {[%clk 0:01:20.9]} 24. Nh4
{[%clk 0:00:52.8]} 24... Kf8 {[%clk 0:00:42.5]} 25. Nxf5 {[%clk 0:00:45.2]}
25... R8c4 {[%clk 0:00:37.8]} 26. Qa7 {[%clk 0:00:41.1]} 26... Qxe5 {[%clk
0:00:12.4]} 27. Ng3 {[%clk 0:00:40.9]} 27... Rxh2+ {[%clk 0:00:08.5]} 28. Kxh2
{[%clk 0:00:40.9]} 28... Rc2+ {[%clk 0:00:09.1]} 29. Rf2 {[%clk 0:00:40.9]}
29... Rxf2+ {[%clk 0:00:08.9]} 30. Qxf2 {[%clk 0:00:40.6]} 30... Qxa1 {[%clk
0:00:09.5]} 31. Qc5+ {[%clk 0:00:38]} 31... Kg8 {[%clk 0:00:09.9]} 32. Qe7
{[%clk 0:00:33.3]} 32... Qb2+ {[%clk 0:00:09.9]} 33. Kg1 {[%clk 0:00:25.7]}
33... Qc1+ {[%clk 0:00:09.9]} 34. Kh2 {[%clk 0:00:26.1]} 34... Qd2+ {[%clk
0:00:10.1]} 35. Kg1 {[%clk 0:00:26.6]} 35... Qd1+ {[%clk 0:00:10]} 36. Kh2
{[%clk 0:00:27.1]} 36... Qc2+ {[%clk 0:00:10.6]} 37. Kg1 {[%clk 0:00:27.3]}
37... Bc8 {[%clk 0:00:10.2]} 38. Qe8+ {[%clk 0:00:23.6]} 38... Kg7 {[%clk
0:00:10.3]} 39. Qe5+ {[%clk 0:00:23.7]} 39... Kf8 {[%clk 0:00:10.3]} 40. Nh5
{[%clk 0:00:16.8]} 40... Qd1+ {[%clk 0:00:09.6]} 41. Kh2 {[%clk 0:00:17.2]}
41... Qd2+ {[%clk 0:00:09.4]} 42. Kg1 {[%clk 0:00:16]} 42... Qd1+ {[%clk
0:00:09.9]} 43. Kh2 {[%clk 0:00:16.4]} 43... Qc2+ {[%clk 0:00:10.3]} 44. Kg1
{[%clk 0:00:16.6]} 44... Be6 {[%clk 0:00:10.8]} 45. Qd6+ {[%clk 0:00:14]} 45...
Kg8 {[%clk 0:00:09.4]} 46. Qd8# {[%clk 0:00:13.2]} 1-0

[Event "*** Titled Tuesday Blitz"]
[Site "Chess.com"]
[Date "2020.04.14"]
[Round "3"]
[White "Andrei_Belozerov"]
[Black "Gabix_94"]
[Result "1/2-1/2"]
[WhiteElo "2653"]
[BlackElo "2858"]
[TimeControl "180+1"]
[EndTime "10:28:44 PDT"]
[Termination "Game drawn by repetition"]

1. e4 {[%clk 0:03:00.9]} 1... c5 {[%clk 0:02:59.4]} 2. Nf3 {[%clk 0:03:01.1]}
2... e6 {[%clk 0:02:56.6]} 3. d4 {[%clk 0:03:01.3]} 3... cxd4 {[%clk 0:02:51.4]}
4. Nxd4 {[%clk 0:03:01.8]} 4... Nc6 {[%clk 0:02:51.9]} 5. Nc3 {[%clk 0:03:01.9]}
5... Qc7 {[%clk 0:02:49.4]} 6. Be3 {[%clk 0:03:01.8]} 6... Nf6 {[%clk
0:02:47.2]} 7. f4 {[%clk 0:02:55.4]} 7... Bb4 {[%clk 0:02:44.2]} 8. Nb5 {[%clk
0:02:55.4]} 8... Qa5 {[%clk 0:02:43.2]} 9. e5 {[%clk 0:02:53.1]} 9... Nd5 {[%clk
0:02:43.5]} 10. Bd2 {[%clk 0:02:51]} 10... Nxc3 {[%clk 0:02:41.8]} 11. Nxc3
{[%clk 0:02:44.2]} 11... d5 {[%clk 0:02:37.6]} 12. a3 {[%clk 0:02:37.9]} 12...
Be7 {[%clk 0:02:26.7]} 13. Bd3 {[%clk 0:02:35.6]} 13... Qb6 {[%clk 0:02:23]} 14.
Qg4 {[%clk 0:02:29.2]} 14... O-O {[%clk 0:02:20.5]} 15. O-O-O {[%clk 0:02:26.7]}
15... Bd7 {[%clk 0:02:12.5]} 16. Nxd5 {[%clk 0:02:25.9]} 16... exd5 {[%clk
0:02:09.7]} 17. Qxd7 {[%clk 0:02:25.9]} 17... Rfd8 {[%clk 0:02:03.4]} 18. Qh3
{[%clk 0:02:24.7]} 18... g6 {[%clk 0:02:01.7]} 19. Rhe1 {[%clk 0:02:21.8]} 19...
Rac8 {[%clk 0:01:58.5]} 20. f5 {[%clk 0:02:19.2]} 20... Nd4 {[%clk 0:01:29.5]}
21. e6 {[%clk 0:02:00]} 21... Nb3+ {[%clk 0:01:23.1]} 22. Kb1 {[%clk 0:01:59.4]}
22... Nxd2+ {[%clk 0:01:24]} 23. Rxd2 {[%clk 0:01:58.8]} 23... Bf6 {[%clk
0:01:22.6]} 24. exf7+ {[%clk 0:01:56.5]} 24... Kg7 {[%clk 0:01:22.7]} 25. c3
{[%clk 0:01:47.5]} 25... g5 {[%clk 0:01:22.8]} 26. Re6 {[%clk 0:01:38.8]} 26...
Rc6 {[%clk 0:01:19.2]} 27. Qe3 {[%clk 0:01:24.5]} 27... Qxe3 {[%clk 0:01:10.1]}
28. Rxe3 {[%clk 0:01:23.6]} 28... Kxf7 {[%clk 0:01:07.3]} 29. Bc2 {[%clk
0:01:22.7]} 29... Kg7 {[%clk 0:01:04.9]} 30. Red3 {[%clk 0:01:17]} 30... Rcd6
{[%clk 0:01:02]} 31. Bb3 {[%clk 0:01:04.7]} 31... d4 {[%clk 0:01:01.8]} 32. c4
{[%clk 0:00:49.4]} 32... b6 {[%clk 0:01:00.9]} 33. Re2 {[%clk 0:00:48.1]} 33...
h5 {[%clk 0:00:59.8]} 34. Ba4 {[%clk 0:00:46.1]} 34... Rc8 {[%clk 0:00:54]} 35.
b3 {[%clk 0:00:42.7]} 35... Rc5 {[%clk 0:00:54.4]} 36. Re6 {[%clk 0:00:38.4]}
36... Rxe6 {[%clk 0:00:51.2]} 37. fxe6 {[%clk 0:00:38.4]} 37... Re5 {[%clk
0:00:51.3]} 38. Bd7 {[%clk 0:00:37.7]} 38... Re1+ {[%clk 0:00:47.3]} 39. Kc2
{[%clk 0:00:36.9]} 39... g4 {[%clk 0:00:45.2]} 40. b4 {[%clk 0:00:35.9]} 40...
Kf8 {[%clk 0:00:40.9]} 41. c5 {[%clk 0:00:35.4]} 41... bxc5 {[%clk 0:00:41.8]}
42. bxc5 {[%clk 0:00:35.5]} 42... Ke7 {[%clk 0:00:39.6]} 43. c6 {[%clk
0:00:35.6]} 43... Be5 {[%clk 0:00:35.2]} 44. Rb3 {[%clk 0:00:34.1]} 44... Re2+
{[%clk 0:00:32.2]} 45. Kd3 {[%clk 0:00:34.1]} 45... Re3+ {[%clk 0:00:32.6]} 46.
Kc4 {[%clk 0:00:33.5]} 46... Rxb3 {[%clk 0:00:30.7]} 47. Kxb3 {[%clk 0:00:33.6]}
47... Bxh2 {[%clk 0:00:31.4]} 48. Kc4 {[%clk 0:00:33.5]} 48... Be5 {[%clk
0:00:31.6]} 49. Kd5 {[%clk 0:00:32.2]} 49... Bc7 {[%clk 0:00:29.3]} 50. Kxd4
{[%clk 0:00:31.8]} 50... h4 {[%clk 0:00:29.9]} 51. Ke4 {[%clk 0:00:31.7]} 51...
h3 {[%clk 0:00:30.2]} 52. gxh3 {[%clk 0:00:31.4]} 52... gxh3 {[%clk 0:00:31.1]}
53. Kf3 {[%clk 0:00:31.9]} 53... a5 {[%clk 0:00:31.6]} 54. a4 {[%clk 0:00:31.4]}
54... Bd6 {[%clk 0:00:31.1]} 55. Kf2 {[%clk 0:00:31.5]} 55... Bc7 {[%clk
0:00:30.5]} 56. Kg1 {[%clk 0:00:31.6]} 56... h2+ {[%clk 0:00:29.9]} 57. Kh1
{[%clk 0:00:31.7]} 57... Bd6 {[%clk 0:00:30.3]} 58. Kg2 {[%clk 0:00:31.9]} 58...
Bc7 {[%clk 0:00:30.6]} 59. Kh1 {[%clk 0:00:31.5]} 59... Bd6 {[%clk 0:00:31]} 60.
Kg2 {[%clk 0:00:31.1]} 60... Bc7 {[%clk 0:00:31.1]} 61. Kh1 {[%clk 0:00:30.1]}
1/2-1/2

[Event "*** Titled Tuesday Blitz"]
[Site "Chess.com"]
[Date "2020.04.14"]
[Round "3"]
[White "Man-Chuk"]
[Black "elohunter1999"]
[Result "0-1"]
[WhiteElo "2744"]
[BlackElo "2475"]
[TimeControl "180+1"]
[EndTime "10:28:44 PDT"]
[Termination "elohunter1999 won on time"]

1. d4 {[%clk 0:03:00.9]} 1... Nf6 {[%clk 0:02:58.6]} 2. c4 {[%clk 0:03:00.5]}
2... e6 {[%clk 0:02:58]} 3. Nf3 {[%clk 0:02:59.8]} 3... d5 {[%clk 0:02:57.8]} 4.
Nc3 {[%clk 0:02:59.2]} 4... Be7 {[%clk 0:02:53.3]} 5. Bf4 {[%clk 0:02:58.6]}
5... O-O {[%clk 0:02:52.9]} 6. Rc1 {[%clk 0:02:58.7]} 6... dxc4 {[%clk
0:02:41.6]} 7. e4 {[%clk 0:02:56.6]} 7... c5 {[%clk 0:02:28.2]} 8. Bxc4 {[%clk
0:02:48.2]} 8... cxd4 {[%clk 0:02:25.4]} 9. Nxd4 {[%clk 0:02:46.3]} 9... Bd7
{[%clk 0:01:56.5]} 10. O-O {[%clk 0:02:20.5]} 10... Nc6 {[%clk 0:01:54.8]} 11.
e5 {[%clk 0:02:20.4]} 11... Ne8 {[%clk 0:01:48.7]} 12. Ndb5 {[%clk 0:02:15.6]}
12... a6 {[%clk 0:01:40.1]} 13. Nd6 {[%clk 0:02:15.4]} 13... Nxd6 {[%clk
0:01:40.3]} 14. exd6 {[%clk 0:02:15.2]} 14... Bf6 {[%clk 0:01:41.2]} 15. Ne4
{[%clk 0:01:56.1]} 15... Ne5 {[%clk 0:01:35.8]} 16. Bb3 {[%clk 0:01:37.8]} 16...
Rc8 {[%clk 0:01:28]} 17. Rxc8 {[%clk 0:01:30.6]} 17... Bxc8 {[%clk 0:01:28.9]}
18. Nxf6+ {[%clk 0:01:26.2]} 18... gxf6 {[%clk 0:01:20.9]} 19. h4 {[%clk
0:01:19.2]} 19... Kh8 {[%clk 0:01:15.9]} 20. Re1 {[%clk 0:01:16.5]} 20... Bd7
{[%clk 0:01:10.7]} 21. h5 {[%clk 0:01:02.7]} 21... Bc6 {[%clk 0:01:04.1]} 22.
Bxe5 {[%clk 0:00:45.3]} 22... fxe5 {[%clk 0:01:03.5]} 23. Rxe5 {[%clk
0:00:44.7]} 23... Rg8 {[%clk 0:01:03.5]} 24. f3 {[%clk 0:00:36.7]} 24... Qb6+
{[%clk 0:00:58.5]} 25. Kh1 {[%clk 0:00:22.2]} 25... Qf2 {[%clk 0:00:41.1]} 26.
Qe2 {[%clk 0:00:22.3]} 26... Rxg2 {[%clk 0:00:27.5]} 27. Qxf2 {[%clk 0:00:21.1]}
27... Rxf2 {[%clk 0:00:28.4]} 28. Rc5 {[%clk 0:00:14.6]} 28... Rd2 {[%clk
0:00:25]} 29. h6 {[%clk 0:00:11.8]} 29... Rxd6 {[%clk 0:00:23]} 30. Kg2 {[%clk
0:00:10.7]} 30... e5 {[%clk 0:00:16.4]} 31. Rxe5 {[%clk 0:00:08.8]} 31... Rxh6
{[%clk 0:00:16.4]} 32. Bxf7 {[%clk 0:00:08.9]} 32... Bxf3+ {[%clk 0:00:16.4]}
33. Kg3 {[%clk 0:00:07.9]} 33... Rf6 {[%clk 0:00:16.1]} 34. Bc4 {[%clk
0:00:07.1]} 34... Bc6 {[%clk 0:00:15]} 35. Re7 {[%clk 0:00:07.2]} 35... h6
{[%clk 0:00:13.1]} 36. b3 {[%clk 0:00:06.2]} 36... Rg6+ {[%clk 0:00:12.5]} 37.
Kf4 {[%clk 0:00:06]} 37... b5 {[%clk 0:00:12.6]} 38. Be6 {[%clk 0:00:02.7]}
38... Rg5 {[%clk 0:00:11.6]} 39. Bf5 {[%clk 0:00:02.2]} 39... Kg8 {[%clk
0:00:11.2]} 0-1

[Event "*** Titled Tuesday Blitz"]
[Site "Chess.com"]
[Date "2020.04.14"]
[Round "3"]
[White "hellokostya"]
[Black "DinaBelenkaya"]
[Result "1-0"]
[WhiteElo "2514"]
[BlackElo "2176"]
[TimeControl "180+1"]
[EndTime "10:28:44 PDT"]
[Termination "hellokostya won on time"]

1. d4 {[%clk 0:03:00.9]} 1... Nf6 {[%clk 0:02:57]} 2. c4 {[%clk 0:02:59.6]} 2...
c5 {[%clk 0:02:57.2]} 3. d5 {[%clk 0:02:57.2]} 3... d6 {[%clk 0:02:57.2]} 4. Nc3
{[%clk 0:02:55.4]} 4... e5 {[%clk 0:02:57]} 5. e4 {[%clk 0:02:51.6]} 5... Be7
{[%clk 0:02:54.2]} 6. Bd3 {[%clk 0:02:49.2]} 6... Nbd7 {[%clk 0:02:46.2]} 7. Be3
{[%clk 0:02:47.4]} 7... O-O {[%clk 0:02:45.9]} 8. f3 {[%clk 0:02:46.2]} 8... Re8
{[%clk 0:02:37.9]} 9. Nge2 {[%clk 0:02:45.5]} 9... Nf8 {[%clk 0:02:37]} 10. Qd2
{[%clk 0:02:41.6]} 10... a6 {[%clk 0:02:37.1]} 11. a4 {[%clk 0:02:39.9]} 11...
b6 {[%clk 0:02:36.2]} 12. O-O {[%clk 0:02:39]} 12... Ng6 {[%clk 0:02:32.1]} 13.
Rfb1 {[%clk 0:02:29]} 13... Nh5 {[%clk 0:02:26.2]} 14. b4 {[%clk 0:02:21.9]}
14... Ngf4 {[%clk 0:02:08.3]} 15. a5 {[%clk 0:02:06.2]} 15... Nxe2+ {[%clk
0:01:49.4]} 16. Nxe2 {[%clk 0:01:55.7]} 16... bxa5 {[%clk 0:01:48.4]} 17. bxc5
{[%clk 0:01:51.5]} 17... dxc5 {[%clk 0:01:48.6]} 18. Qxa5 {[%clk 0:01:48.9]}
18... Bg5 {[%clk 0:01:36.6]} 19. Qxc5 {[%clk 0:01:37.3]} 19... Nf4 {[%clk
0:01:22.4]} 20. Nxf4 {[%clk 0:01:35.5]} 20... exf4 {[%clk 0:01:11.3]} 21. Bd4
{[%clk 0:01:35]} 21... Bh4 {[%clk 0:01:11.3]} 22. Ra2 {[%clk 0:01:04.3]} 22...
Qg5 {[%clk 0:01:10.8]} 23. Kh1 {[%clk 0:00:57.4]} 23... Qh5 {[%clk 0:01:02.8]}
24. Qc6 {[%clk 0:00:49.1]} 24... Bh3 {[%clk 0:01:00.9]} 25. Bf1 {[%clk
0:00:25.4]} 25... Bg3 {[%clk 0:00:57.4]} 26. gxh3 {[%clk 0:00:22.4]} 26... Qxf3+
{[%clk 0:00:47.6]} 27. Rg2 {[%clk 0:00:14.4]} 27... Rac8 {[%clk 0:00:42.7]} 28.
Qa4 {[%clk 0:00:11.4]} 28... Rxe4 {[%clk 0:00:40.1]} 29. hxg3 {[%clk 0:00:09.8]}
29... Rxd4 {[%clk 0:00:39.9]} 30. Re1 {[%clk 0:00:07.8]} 30... Re4 {[%clk
0:00:21.5]} 31. Rxe4 {[%clk 0:00:07.5]} 31... Qxe4 {[%clk 0:00:21.7]} 32. Qc2
{[%clk 0:00:07.1]} 32... Qe5 {[%clk 0:00:13.7]} 33. gxf4 {[%clk 0:00:06.7]}
33... Qxf4 {[%clk 0:00:13.5]} 34. Rf2 {[%clk 0:00:07.1]} 34... Qe5 {[%clk
0:00:11]} 35. Qe2 {[%clk 0:00:05.9]} 35... Qd4 {[%clk 0:00:09.9]} 36. Qf3 {[%clk
0:00:05.9]} 36... Rf8 {[%clk 0:00:09.5]} 37. Bg2 {[%clk 0:00:04.7]} 37... a5
{[%clk 0:00:09.5]} 38. Qf4 {[%clk 0:00:04.6]} 38... Qd1+ {[%clk 0:00:08.9]} 39.
Kh2 {[%clk 0:00:04.7]} 39... a4 {[%clk 0:00:09.8]} 40. d6 {[%clk 0:00:05]} 40...
a3 {[%clk 0:00:09.6]} 41. c5 {[%clk 0:00:05.2]} 41... Qb1 {[%clk 0:00:04.7]} 42.
Qc4 {[%clk 0:00:04.6]} 42... Qd1 {[%clk 0:00:01.2]} 43. Bd5 {[%clk 0:00:04.3]}
43... Qe1 {[%clk 0:00:01.2]} 44. Bxf7+ {[%clk 0:00:04.2]} 1-0

[Event "*** Titled Tuesday Blitz"]
[Site "Chess.com"]
[Date "2020.04.14"]
[Round "3"]
[White "Tjktiger"]
[Black "DamianoLew95"]
[Result "1-0"]
[WhiteElo "2824"]
[BlackElo "2564"]
[TimeControl "180+1"]
[EndTime "10:28:45 PDT"]
[Termination "Tjktiger won on time"]

1. c4 {[%clk 0:03:00]} 1... g6 {[%clk 0:02:58.7]} 2. Nc3 {[%clk 0:02:59.5]} 2...
Bg7 {[%clk 0:02:57.8]} 3. d4 {[%clk 0:02:59.4]} 3... d6 {[%clk 0:02:57.8]} 4.
Nf3 {[%clk 0:02:58.8]} 4... e5 {[%clk 0:02:57.7]} 5. dxe5 {[%clk 0:02:57.9]}
5... dxe5 {[%clk 0:02:58.6]} 6. Qxd8+ {[%clk 0:02:57.2]} 6... Kxd8 {[%clk
0:02:59.5]} 7. g3 {[%clk 0:02:56.3]} 7... c6 {[%clk 0:02:58.9]} 8. Bg2 {[%clk
0:02:55.8]} 8... h6 {[%clk 0:02:58.8]} 9. O-O {[%clk 0:02:37.4]} 9... Be6 {[%clk
0:02:58.4]} 10. b3 {[%clk 0:02:19.3]} 10... Nd7 {[%clk 0:02:54.7]} 11. Rd1
{[%clk 0:02:16.6]} 11... Kc7 {[%clk 0:02:43.6]} 12. Ba3 {[%clk 0:02:15.7]} 12...
Bf8 {[%clk 0:02:38.1]} 13. Bb2 {[%clk 0:02:11.9]} 13... f6 {[%clk 0:02:23.8]}
14. Rac1 {[%clk 0:02:07.8]} 14... Bc5 {[%clk 0:02:19.7]} 15. Ne4 {[%clk
0:02:00.5]} 15... Be7 {[%clk 0:02:14.5]} 16. Nh4 {[%clk 0:01:56.9]} 16... Bf7
{[%clk 0:02:09.7]} 17. Bh3 {[%clk 0:01:56.8]} 17... Rd8 {[%clk 0:02:08.6]} 18.
f4 {[%clk 0:01:51.8]} 18... exf4 {[%clk 0:02:00.8]} 19. gxf4 {[%clk 0:01:52.7]}
19... Rh7 {[%clk 0:01:59.4]} 20. Nf3 {[%clk 0:01:37.6]} 20... f5 {[%clk
0:01:56.3]} 21. Ne5 {[%clk 0:01:26]} 21... Be8 {[%clk 0:01:33.6]} 22. Nxd7
{[%clk 0:01:18.1]} 22... Rxd7 {[%clk 0:01:26.4]} 23. Be5+ {[%clk 0:01:18.3]}
23... Kc8 {[%clk 0:01:26]} 24. Rxd7 {[%clk 0:01:16.8]} 24... Bxd7 {[%clk
0:01:24.2]} 25. Rd1 {[%clk 0:01:15.2]} 25... Bb4 {[%clk 0:01:06.8]} 26. Nd6+
{[%clk 0:01:10.6]} 26... Bxd6 {[%clk 0:01:06.3]} 27. Rxd6 {[%clk 0:01:11.5]}
27... Ne7 {[%clk 0:01:01.1]} 28. Rf6 {[%clk 0:01:10.7]} 28... Be8 {[%clk
0:00:43.2]} 29. e4 {[%clk 0:01:02.5]} 29... Rf7 {[%clk 0:00:42.9]} 30. Rxf7
{[%clk 0:00:29.7]} 30... Bxf7 {[%clk 0:00:43.8]} 31. Bd6 {[%clk 0:00:21.7]}
31... Kd7 {[%clk 0:00:41.2]} 32. Bxe7 {[%clk 0:00:21.3]} 32... Kxe7 {[%clk
0:00:42.1]} 33. exf5 {[%clk 0:00:21.7]} 33... g5 {[%clk 0:00:40.4]} 34. Kf2
{[%clk 0:00:19]} 34... Kf6 {[%clk 0:00:39.5]} 35. Ke3 {[%clk 0:00:18.3]} 35...
Bh5 {[%clk 0:00:24.8]} 36. fxg5+ {[%clk 0:00:18.3]} 36... hxg5 {[%clk
0:00:24.4]} 37. Kd4 {[%clk 0:00:15]} 37... Bd1 {[%clk 0:00:20.9]} 38. Kc5 {[%clk
0:00:12.2]} 38... g4 {[%clk 0:00:14.7]} 39. Bg2 {[%clk 0:00:11]} 39... Bf3
{[%clk 0:00:14.1]} 40. Bf1 {[%clk 0:00:10.9]} 40... Ke5 {[%clk 0:00:14.2]} 41.
Bd3 {[%clk 0:00:07.9]} 41... b6+ {[%clk 0:00:09]} 42. Kb4 {[%clk 0:00:08.3]} 1-0